bitfinex-derivatives/quotes_SOLF0:USTF0_20241226
["timestamp","ask_amount","ask_price","bid_price","bid_amount"]
[1735197610886,8.1348381,194.33,194.26,2.5765]
[1735197611280,2.5759,194.31,194.26,2.5765]
[1735197613282,2.5759,194.31,194.25,11.2548381]
[1735197613488,2.5759,194.31,194.27,2.5764]
[1735197616383,2.5759,194.31,194.27,8.1348381]
[1735197616584,2.5759,194.31,194.28,2.5763]
[1735197618690,8.1348381,194.33,194.27,8.1348381]
[1735197618891,2.5757,194.33,194.29,2.5761]
[1735197619091,1.5874,194.34,194.27,8.1348381]
[1735197619894,1.5874,194.34,194.3,2.576]
[1735197620283,1.5874,194.34,194.27,8.1348381]
[1735197620484,4.1629,194.34,194.31,2.5758]
[1735197620690,1.5874,194.34,194.31,2.5758]
[1735197628093,2.5752,194.36,194.32,2.5757]
[1735197628300,18.7956,194.43,194.31,8.1348381]
[1735197628301,8.1348381,194.39,194.31,8.1348381]
[1735197628496,8.1348381,194.39,194.34,2.5754]
[1735197628696,2.5751,194.38,194.34,2.5754]
[1735197629996,8.1348381,194.39,194.26,1.5766]
[1735197630200,2.5752,194.36,194.32,2.5756]
[1735197630398,2.5752,194.36,194.32,8.1348381]
[1735197630597,8.1348381,194.39,194.32,8.1348381]
[1735197632401,2.575,194.38,194.34,2.5753]
[1735197633797,1.6609,194.42,194.34,8.1348381]
[1735197633997,8.1348381,194.41,194.34,8.1348381]
[1735197634902,2.5747,194.4,194.36,2.5752]
[1735197636697,8.1348381,194.41,194.34,8.1348381]
[1735197636902,2.5746,194.41,194.37,2.575]
[1735197637702,1.6609,194.42,194.36,8.1348381]
[1735197638908,2.5746,194.41,194.36,10.7099381]
[1735197639804,2.5746,194.41,194.37,2.575]
[1735197642012,1.6609,194.42,194.37,2.575]
[1735197642208,8.1348381,194.41,194.35,2.5752]
[1735197642402,8.1348381,194.39,194.33,8.1348381]
[1735197642608,8.1348381,194.39,194.32,3.14]
[1735197642811,2.5752,194.36,194.31,3.12]
[1735197643006,2.5752,194.36,194.31,11.2548381]
[1735197643207,8.1348381,194.39,194.31,11.2548381]
[1735197643409,2.5751,194.37,194.33,2.5756]
[1735197643608,2.5751,194.37,194.33,10.7104381]
[1735197644307,8.1348381,194.39,194.31,3.12]
[1735197644516,8.1348381,194.37,194.29,11.2548381]
[1735197645212,2.5756,194.34,194.3,2.576]
[1735197646409,2.5752,194.36,194.32,2.5757]
[1735197648918,2.5752,194.36,194.31,8.1348381]
[1735197649108,2.5752,194.36,194.33,2.5756]
[1735197650516,4.7809,194.42,194.33,8.1348381]
[1735197650715,2.5749,194.39,194.35,2.5753]
[1735197651117,8.1348381,194.41,194.33,8.1348381]
[1735197651613,2.575,194.38,194.34,2.5754]
[1735197654219,8.1348381,194.39,194.28,3.12]
[1735197654413,8.1348381,194.39,194.31,8.1348381]
[1735197656019,2.5753,194.36,194.32,2.5757]
[1735197657619,2.5753,194.35,194.32,2.5757]
[1735197658619,2.5752,194.37,194.32,2.5757]
[1735197658819,8.1348381,194.39,194.32,2.5757]
[1735197659716,2.5751,194.37,194.32,2.5757]
[1735197660115,8.1348381,194.39,194.32,2.5757]
[1735197660315,8.1348381,194.39,194.31,10.7106381]
[1735197661220,8.1348381,194.39,194.31,2.5758]
[1735197661415,8.1348381,194.37,194.29,10.7109381]
[1735197661614,8.1348381,194.37,194.29,8.1348381]
[1735197661818,2.5758,194.32,194.29,8.1348381]
[1735197664515,8.1348381,194.39,194.31,8.1348381]
[1735197665021,2.5747,194.4,194.36,2.5751]
[1735197665217,7.14813264,194.41,194.37,8.1348381]
[1735197665522,7.14813264,194.41,194.39,8.1348381]
[1735197665721,1.60631365,194.44,194.39,10.7096381]
[1735197666015,7.14813264,194.47,194.43,8.1348381]
[1735197666516,61.95446116,194.49,194.43,8.1348381]
[1735197666517,4.7694,194.49,194.43,8.1348381]
[1735197667322,2.5736,194.48,194.43,8.1348381]
[1735197667521,4.7694,194.49,194.43,8.1348381]
[1735197668022,2.5736,194.48,194.43,10.7090381]
[1735197669124,4.7694,194.49,194.42,3.12]
[1735197669125,8.1348381,194.47,194.42,3.12]
[1735197669323,8.1348381,194.47,194.4,8.1348381]
[1735197670517,2.574,194.45,194.4,8.1348381]
[1735197671121,8.1348381,194.47,194.4,8.1348381]
[1735197671320,10.7086381,194.47,194.4,8.1348381]
[1735197671523,2.5738,194.47,194.42,8.1348381]
[1735197671816,4.7694,194.49,194.42,8.1348381]
[1735197672022,1.568,194.49,194.44,8.1348381]
[1735197672327,1.568,194.49,194.44,11.2548381]
[1735197673524,8.1348381,194.51,194.44,11.2548381]
[1735197673525,3.1231,194.55,194.46,8.1348381]
[1735197673721,8.1348381,194.54,194.46,8.1348381]
[1735197673924,2.5732,194.51,194.47,2.5737]
[1735197674120,2.5732,194.51,194.46,8.1348381]
[1735197675425,2.5732,194.51,194.47,2.5737]
[1735197675923,11.2579381,194.55,194.46,8.1348381]
[1735197676125,1.5544,194.58,194.48,8.1348381]
[1735197676427,2.5728,194.55,194.48,8.1348381]
[1735197676618,2.5728,194.55,194.5,2.5733]
[1735197677426,2.5728,194.55,194.51,2.5732]
[1735197677626,10.7074381,194.56,194.51,2.5732]
[1735197677923,8.1348381,194.56,194.52,2.573]
[1735197678122,9.6892381,194.58,194.52,2.573]
[1735197678321,9.6892381,194.58,194.5,11.3548381]
[1735197678322,12.2615381,194.58,194.53,2.5729]
[1735197678521,9.6892381,194.58,194.53,2.5729]
[1735197679322,1.5544,194.58,194.54,2.5728]
[1735197679722,1.5544,194.58,194.52,8.1348381]
[1735197679921,2.5725,194.57,194.51,2.5731]
[1735197680123,8.1348381,194.56,194.5,3.22]
[1735197680420,2.5729,194.54,194.5,3.22]
[1735197680725,8.1348381,194.54,194.46,8.1348381]
[1735197681529,2.5732,194.51,194.47,2.5737]
[1735197682027,8.1348381,194.54,194.46,8.1348381]
[1735197682218,2.5733,194.5,194.46,8.1348381]
[1735197682723,2.5735,194.49,194.46,8.1348381]
[1735197682921,8.1348381,194.5,194.44,11.3548381]
[1735197683425,2.5737,194.48,194.44,11.3548381]
[1735197685026,2.5735,194.49,194.44,13.9288381]
[1735197685826,8.1348381,194.5,194.44,11.3548381]
[1735197686131,10.7081381,194.5,194.45,2.5739]
[1735197686526,2.5736,194.49,194.44,13.9289381]
[1735197686818,8.1348381,194.5,194.44,3.22]
[1735197687528,2.5736,194.48,194.44,3.22]
[1735197688130,1.5857,194.51,194.44,11.3548381]
[1735197688330,2.5735,194.5,194.45,2.574]
[1735197688521,9.7205381,194.51,194.44,3.22]
[1735197688921,2.5735,194.49,194.44,5.7941]
[1735197689224,8.1348381,194.49,194.44,3.22]
[1735197689426,2.574,194.46,194.41,10.7092381]
[1735197690028,2.574,194.46,194.42,2.5744]
[1735197690428,3.1476,194.5,194.41,8.1348381]
[1735197690631,11.2824381,194.5,194.44,2.5741]
[1735197691124,2.5736,194.49,194.44,2.5741]
[1735197693529,8.1348381,194.48,194.41,11.3548381]
[1735197693725,8.1348381,194.46,194.35,53.52]
[1735197693930,8.1348381,194.44,194.37,8.1348381]
[1735197694134,8.1348381,194.42,194.35,3.22]
[1735197694336,8.1348381,194.42,194.35,11.3548381]
[1735197694636,8.1348381,194.4,194.33,8.1348381]
[1735197694835,2.5751,194.37,194.33,8.1348381]
[1735197695136,8.1348381,194.4,194.31,3.22]
[1735197695137,3.1853,194.41,194.35,8.1348381]
[1735197695328,8.1348381,194.42,194.35,8.1348381]
[1735197695525,4.1444,194.43,194.38,2.5749]
[1735197695729,1.57,194.43,194.35,8.1348381]
[1735197696131,1.57,194.43,194.31,3.22]
[1735197696339,8.1348381,194.42,194.35,8.1348381]
[1735197696531,8.1348381,194.42,194.31,3.22]
[1735197696837,8.1348381,194.4,194.33,8.1348381]
[1735197697834,2.5749,194.38,194.33,10.7103381]
[1735197698534,8.1348381,194.4,194.33,8.1348381]
[1735197698840,2.5748,194.39,194.34,2.5753]
[1735197699235,11.3201381,194.42,194.35,8.1348381]
[1735197700433,1.5689,194.42,194.37,8.1348381]
[1735197700638,1.57,194.43,194.37,8.1348381]
[1735197700941,1.57,194.43,194.37,11.3548381]
[1735197701135,4.1443,194.43,194.39,2.5748]
[1735197703540,2.5745,194.41,194.37,13.9299381]
[1735197703839,1.57,194.43,194.37,11.3548381]
[1735197705434,2.5744,194.42,194.38,2.5749]
[1735197705639,1.57,194.43,194.37,11.3548381]
[1735197705939,2.5748,194.4,194.34,2.5753]
[1735197706135,8.1348381,194.42,194.35,8.1348381]
[1735197706335,1.57,194.43,194.35,8.1348381]
[1735197707140,1.57,194.43,194.37,8.1348381]
[1735197707533,2.5744,194.42,194.38,2.5749]
[1735197710339,2.5746,194.41,194.37,2.575]
[1735197710546,8.1348381,194.42,194.33,11.4948381]
[1735197711044,8.1348381,194.4,194.33,11.4948381]
[1735197711240,2.5749,194.39,194.33,11.4948381]
[1735197711441,9.7073381,194.42,194.33,11.4948381]
[1735197711943,9.7073381,194.42,194.35,8.1348381]
[1735197712442,2.5747,194.4,194.36,2.5752]
[1735197716344,4.147,194.42,194.37,2.575]
[1735197716544,1.5725,194.42,194.37,2.575]
[1735197717448,2.5745,194.41,194.37,2.575]
[1735197719453,4.1444,194.43,194.39,2.5748]
[1735197721048,4.1444,194.43,194.33,3.36]
[1735197721049,2.5746,194.41,194.36,2.5752]
[1735197721250,1.57,194.43,194.37,8.1348381]
[1735197722252,4.1444,194.43,194.38,2.5748]
[1735197723252,2.5746,194.41,194.37,8.1348381]
[1735197723555,2.5746,194.41,194.37,10.7098381]
[1735197724154,2.5746,194.41,194.38,2.5749]
[1735197725149,2.5746,194.41,194.36,8.1348381]
[1735197725150,1.57,194.43,194.36,8.1348381]
[1735197725352,2.5744,194.42,194.39,2.5748]
[1735197725954,4.1443,194.43,194.39,2.5748]
[1735197726656,1.57,194.43,194.4,2.5746]
[1735197726953,1.57,194.43,194.38,8.1348381]
[1735197728456,2.5745,194.41,194.38,2.5749]
[1735197729361,1.6727,194.45,194.4,8.1348381]
[1735197729558,1.6649,194.46,194.4,8.1348381]
[1735197731661,8.1348381,194.45,194.38,8.1348381]
[1735197732360,8.1348381,194.43,194.33,3.36]
[1735197732659,8.1348381,194.43,194.35,8.1348381]
[1735197732859,1.6029,194.42,194.35,8.1348381]
[1735197733164,2.5747,194.4,194.36,2.5752]
[1735197734757,2.5751,194.38,194.35,8.1348381]
[1735197735566,2.5751,194.37,194.35,8.1348381]
[1735197735764,2.5751,194.37,194.29,1.5689]
[1735197735765,8.1348381,194.39,194.31,2.5758]
[1735197736066,8.1348381,194.37,194.31,8.1348381]
[1735197736265,8.1348381,194.37,194.29,8.1348381]
[1735197736664,8.1348381,194.35,194.29,8.1348381]
[1735197736969,8.1348381,194.35,194.26,3.38]
[1735197736970,2.5757,194.32,194.28,2.5763]
[1735197737264,8.1348381,194.35,194.28,8.1348381]
[1735197738059,1.5293,194.34,194.28,8.1348381]
[1735197738461,2.576,194.31,194.28,8.1348381]
[1735197739359,1.5293,194.34,194.28,8.1348381]
[1735197740156,1.5293,194.34,194.25,3.38]
[1735197740361,1.5293,194.34,194.27,8.1348381]
[1735197741063,8.1348381,194.33,194.22,53.5]
[1735197741365,8.1348381,194.33,194.25,8.1348381]
[1735197741561,8.1348381,194.31,194.25,8.1348381]
[1735197742467,2.5764,194.28,194.25,8.1348381]
[1735197743870,2.5764,194.28,194.23,14.0917381]
[1735197744671,2.5764,194.28,194.23,10.7117381]
[1735197746170,2.5764,194.28,194.24,2.5768]
[1735197746464,8.1348381,194.31,194.23,8.1348381]
[1735197746665,2.5766,194.26,194.21,11.5148381]
[1735197746871,2.5766,194.26,194.22,2.5771]
[1735197748267,2.5767,194.25,194.21,8.1348381]
[1735197748769,8.1348381,194.25,194.19,8.1348381]
[1735197748976,8.1348381,194.25,194.18,2.5775]
[1735197749374,2.5769,194.23,194.19,2.5774]
[1735197749571,8.1348381,194.25,194.18,8.1348381]
[1735197749764,1.6423,194.26,194.2,8.1348381]
[1735197750576,4.2189,194.26,194.21,2.5771]
[1735197752276,2.5767,194.25,194.21,2.5771]
[1735197755174,2.5767,194.25,194.2,10.7121381]
[1735197755378,2.5768,194.24,194.2,2.5773]
[1735197755880,2.5767,194.25,194.2,2.5773]
[1735197758476,2.5769,194.23,194.17,11.5148381]
[1735197758776,2.5769,194.23,194.19,2.5774]
[1735197758974,8.1348381,194.25,194.17,8.1348381]
[1735197760485,2.5771,194.22,194.18,2.5776]
[1735197761382,2.5771,194.22,194.19,2.5774]
[1735197761579,2.5769,194.23,194.19,2.5774]
[1735197766985,2.5767,194.25,194.21,2.5772]
[1735197767286,2.5767,194.25,194.2,8.1348381]
[1735197768082,1.6423,194.26,194.2,8.1348381]
[1735197768290,4.2188,194.26,194.22,2.5771]
[1735197769684,2.5767,194.25,194.22,2.5771]
[1735197770887,8.1348381,194.31,194.23,8.1348381]
[1735197772290,8.1348381,194.31,194.26,2.5765]
[1735197772588,8.1348381,194.31,194.23,8.1348381]
[1735197772984,8.1348381,194.31,194.26,2.5764]
[1735197774492,2.576,194.3,194.26,2.5764]
[1735197778897,1.6699,194.32,194.28,2.5762]
[1735197778898,4.2457,194.32,194.28,2.5762]
[1735197780696,1.6699,194.32,194.29,2.576]
[1735197781901,1.661,194.35,194.21,3.3]
[1735197781902,12.3712381,194.35,194.3,2.5759]
[1735197782093,12.3712381,194.35,194.27,8.1348381]
[1735197782598,12.3712381,194.35,194.27,11.4348381]
[1735197783400,12.3712381,194.35,194.31,2.5758]
[1735197785294,9.7958381,194.35,194.29,8.1348381]
[1735197785497,8.1348381,194.37,194.31,8.1348381]
[1735197786102,2.5752,194.37,194.33,2.5755]
[1735197786302,8.1348381,194.38,194.33,8.1348381]
[1735197786503,3.1208,194.39,194.33,8.1348381]
[1735197786904,1.48888006,194.41,194.37,8.1348381]
[1735197787203,28.53118041,194.44,194.39,8.1348381]
[1735197787401,38.26521851,194.46,194.39,8.1348381]
[1735197788108,30.13038041,194.46,194.41,8.1348381]
[1735197788803,1.5992,194.46,194.41,8.1348381]
[1735197789198,1.5992,194.46,194.43,8.1348381]
[1735197791101,1.5992,194.46,194.44,2.5741]
[1735197791310,1.5992,194.46,194.43,8.1348381]
[1735197791911,12.2859381,194.5,194.43,8.1348381]
[1735197792112,1.5776,194.5,194.43,8.1348381]
[1735197792611,1.5776,194.5,194.45,8.1348381]
[1735197793208,9.6717381,194.52,194.47,2.5737]
[1735197793416,1.5369,194.52,194.47,8.1348381]
[1735197793612,8.1348381,194.54,194.47,8.1348381]
[1735197793812,2.573,194.53,194.48,2.5735]
[1735197794811,10.7076381,194.54,194.49,2.5735]
[1735197796614,2.5728,194.54,194.49,2.5735]
[1735197796814,1.5136,194.55,194.5,2.5733]
[1735197797214,1.5136,194.55,194.49,8.1348381]
[1735197799323,2.5728,194.54,194.5,2.5733]
[1735197799511,1.5136,194.55,194.49,8.1348381]
[1735197799713,1.48796013,194.56,194.49,8.1348381]
[1735197799913,1.48796013,194.56,194.51,8.1348381]
[1735197800216,4.06056013,194.56,194.52,2.5731]
[1735197800516,1.48796013,194.56,194.52,2.5731]
[1735197801023,1.48796013,194.56,194.51,8.1348381]
[1735197801216,4.06056013,194.56,194.51,8.1348381]
[1735197802520,1.48796013,194.56,194.51,8.1348381]
[1735197803419,1.48796013,194.56,194.52,2.573]
[1735197804126,4.06056013,194.56,194.52,2.573]
[1735197804518,1.48796013,194.56,194.52,2.573]
[1735197808025,1.48796013,194.56,194.53,2.5729]
[1735197809627,1.48796013,194.56,194.51,8.1348381]
[1735197809827,2.5723,194.58,194.54,2.5727]
[1735197812131,2.5726,194.56,194.51,3.28]
[1735197812325,11.4216381,194.6,194.51,11.4148381]
[1735197812730,2.5726,194.56,194.52,2.5731]
[1735197813323,2.5724,194.58,194.53,8.1348381]
[1735197813523,3.2868,194.6,194.55,8.1348381]
[1735197813728,1.6554,194.6,194.57,8.1348381]
[1735197814024,9.7524381,194.66,194.59,8.1348381]
[1735197814422,1.6176,194.66,194.61,8.1348381]
[1735197814827,1.5336,194.67,194.61,8.1348381]
[1735197815533,2.5712,194.66,194.61,10.7066381]
[1735197817732,2.5712,194.66,194.63,8.1348381]
[1735197817932,2.5711,194.68,194.63,8.1348381]
[1735197818323,2.5711,194.68,194.63,10.7064381]
[1735197819834,2.5712,194.67,194.63,10.7064381]
[1735197820036,9.7874381,194.71,194.57,3.28]
[1735197820237,8.1348381,194.69,194.62,8.1348381]
[1735197820934,2.5714,194.65,194.62,8.1348381]
[1735197824442,2.5715,194.64,194.6,10.7068381]
[1735197824640,2.5715,194.64,194.6,8.1348381]
[1735197825140,2.5715,194.64,194.6,10.7067381]
[1735197825539,2.5714,194.66,194.61,2.5719]
[1735197825940,1.6526,194.71,194.6,8.1348381]
[1735197825941,8.1348381,194.67,194.6,8.1348381]
[1735197826243,2.5715,194.65,194.62,8.1348381]
[1735197826639,1.6526,194.71,194.64,8.1348381]
[1735197826838,9.7874381,194.71,194.64,8.1348381]
[1735197827337,2.5711,194.68,194.63,2.5716]
[1735197827836,8.1348381,194.69,194.63,2.5716]
[1735197828040,8.1348381,194.67,194.6,8.1348381]
[1735197828236,8.1348381,194.65,194.5,7.08733193]
[1735197828436,2.5719,194.61,194.57,8.1348381]
[1735197828636,8.1348381,194.63,194.56,2.5724]
[1735197828837,8.1348381,194.63,194.56,10.7072381]
[1735197829034,8.1348381,194.63,194.54,3.2]
[1735197829239,8.1348381,194.61,194.54,8.1348381]
[1735197830642,2.5722,194.59,194.54,10.7076381]
[1735197833541,2.5722,194.59,194.55,2.5727]
[1735197834646,2.572,194.6,194.55,2.5727]
[1735197836052,9.7141381,194.64,194.56,8.1348381]
[1735197836650,2.5717,194.63,194.58,2.5722]
[1735197839853,9.7141381,194.64,194.51,3.2]
[1735197840055,2.5719,194.61,194.51,3.2]
[1735197840351,8.1348381,194.62,194.54,8.1348381]
[1735197840552,8.1348381,194.62,194.56,8.1348381]
[1735197841149,2.5719,194.61,194.56,10.7072381]
[1735197841654,2.5719,194.61,194.57,2.5724]
[1735197843750,9.7141381,194.64,194.56,8.1348381]
[1735197844450,2.5721,194.6,194.56,10.7073381]
[1735197845252,2.5719,194.61,194.58,2.5723]
[1735197845453,9.7141381,194.64,194.56,8.1348381]
[1735197846552,2.5717,194.63,194.59,2.572]
[1735197847756,2.5715,194.65,194.6,2.5719]
[1735197847957,8.1348381,194.69,194.6,8.1348381]
[1735197848156,2.5711,194.67,194.64,2.5714]
[1735197848358,2.5711,194.67,194.62,8.1348381]
[1735197848562,8.1348381,194.69,194.62,8.1348381]
[1735197848953,3.0706,194.7,194.62,8.1348381]
[1735197849259,3.0706,194.7,194.64,8.1348381]
[1735197849959,3.0706,194.7,194.66,2.5711]
[1735197850160,1.5458,194.7,194.66,8.1348381]
[1735197850362,15.2676332,194.75,194.68,8.1348381]
[1735197850551,2.5702,194.74,194.69,2.5708]
[1735197850752,2.5702,194.74,194.68,8.1348381]
[1735197851466,2.5702,194.74,194.7,2.5707]
[1735197852265,2.5702,194.74,194.69,2.5708]
[1735197853063,8.1348381,194.75,194.71,2.5706]
[1735197853366,8.1348381,194.75,194.68,8.1348381]
[1735197854064,2.5701,194.75,194.7,2.5707]
[1735197854363,2.5701,194.75,194.68,8.1348381]
[1735197854556,11.4496381,194.76,194.68,8.1348381]
[1735197855555,2.5702,194.74,194.69,2.5708]
[1735197855761,3.3148,194.76,194.7,8.1348381]
[1735197856060,1.6716,194.76,194.7,8.1348381]
[1735197856565,1.6716,194.76,194.72,8.1348381]
[1735197856768,1.6716,194.76,194.72,10.7051381]
[1735197857067,1.6716,194.76,194.72,8.1348381]
[1735197857269,2.5696,194.78,194.72,8.1348381]
[1735197857571,2.5696,194.78,194.72,10.7051381]
[1735197858569,2.5696,194.78,194.73,2.5702]
[1735197858869,2.5696,194.78,194.72,8.1348381]
[1735197859572,2.5696,194.78,194.74,2.5702]
[1735197859767,8.1348381,194.79,194.7,3.24]
[1735197859970,2.5698,194.77,194.72,10.7051381]
[1735197862972,8.1348381,194.79,194.72,8.1348381]
[1735197863173,8.1348381,194.75,194.68,11.3748381]
[1735197863373,8.1348381,194.75,194.68,8.1348381]
[1735197863676,2.5708,194.69,194.66,11.3748381]
[1735197863873,8.1348381,194.73,194.66,8.1348381]
[1735197864070,8.1348381,194.71,194.64,8.1348381]
[1735197864268,2.5712,194.67,194.62,2.5717]
[1735197864477,2.5712,194.67,194.63,8.1348381]
[1735197864680,8.1348381,194.67,194.54,1.5598]
[1735197864974,2.5715,194.65,194.6,8.1348381]
[1735197865772,2.5711,194.67,194.62,8.1348381]
[1735197865978,8.1348381,194.69,194.62,8.1348381]
[1735197866771,8.1348381,194.69,194.45,60.56733193]
[1735197866976,8.1348381,194.65,194.56,8.1348381]
[1735197867678,2.572,194.61,194.56,8.1348381]
[1735197869073,8.1348381,194.61,194.53,8.1348381]
[1735197869278,8.1348381,194.59,194.51,8.1348381]
[1735197869575,8.1348381,194.59,194.53,8.1348381]
[1735197869576,2.5724,194.58,194.53,8.1348381]
[1735197869879,8.1348381,194.59,194.53,8.1348381]
[1735197870477,2.5725,194.57,194.53,8.1348381]
[1735197873980,8.1348381,194.61,194.53,8.1348381]
[1735197874184,2.5723,194.59,194.54,2.5728]
[1735197875086,8.1348381,194.61,194.54,2.5728]
[1735197875285,2.5723,194.58,194.53,10.7077381]
[1735197879784,2.5723,194.58,194.53,8.1348381]
[1735197879980,2.5721,194.6,194.55,8.1348381]
[1735197880887,2.5722,194.59,194.55,10.7075381]
[1735197881585,2.5722,194.59,194.55,8.1348381]
[1735197881786,2.5725,194.57,194.53,8.1348381]
[1735197883490,2.5725,194.57,194.53,10.7077381]
[1735197885085,2.5724,194.58,194.54,2.5728]
[1735197889191,2.5723,194.59,194.55,2.5726]
[1735197889396,8.1348381,194.62,194.53,8.1348381]
[1735197890496,2.5723,194.58,194.54,2.5728]
[1735197896592,2.572,194.6,194.55,10.7074381]
[1735197896793,8.1348381,194.62,194.55,10.7074381]
[1735197897498,2.5723,194.59,194.55,10.7074381]
[1735197899400,8.1348381,194.62,194.55,8.1348381]
[1735197899601,2.5725,194.57,194.53,10.7076381]
[1735197904900,2.5725,194.57,194.55,8.1348381]
[1735197906904,2.5725,194.57,194.53,10.7076381]
[1735197907601,2.5725,194.57,194.54,2.5728]
[1735197909398,2.5725,194.57,194.54,10.7076381]
[1735197916909,2.5723,194.58,194.54,10.7076381]
[1735197919207,31.71368041,194.63,194.54,8.1348381]
[1735197919408,8.1348381,194.58,194.46,1.5142]
[1735197919606,1.6101,194.57,194.5,8.1348381]
[1735197920009,8.1348381,194.56,194.5,8.1348381]
[1735197921413,8.1348381,194.56,194.47,3.22]
[1735197921414,2.5732,194.52,194.47,2.5737]
[1735197921608,2.5732,194.52,194.48,8.1348381]
[1735197923214,2.5732,194.52,194.47,2.5737]
[1735197923415,2.5732,194.52,194.48,8.1348381]
[1735197924814,2.5732,194.52,194.48,10.7084381]
[1735197926616,2.5732,194.52,194.48,8.1348381]
[1735197926915,3.1806,194.56,194.5,8.1348381]
[1735197927217,1.6101,194.57,194.52,8.1348381]
[1735197928118,1.6101,194.57,194.54,2.5728]
[1735197929218,4.1825,194.57,194.54,2.5728]
[1735197929712,3.0581,194.61,194.56,8.1348381]
[1735197929918,8.7724951,194.63,194.57,8.1348381]
[1735197930621,1.6397,194.63,194.57,8.1348381]
[1735197930814,2.572,194.61,194.57,8.1348381]
[1735197931817,2.572,194.61,194.57,10.7072381]
[1735197932022,12.9159951,194.66,194.59,8.1348381]
[1735197932319,12.9159951,194.66,194.61,8.1348381]
[1735197932523,5.7832,194.66,194.61,8.1348381]
[1735197933021,5.7832,194.66,194.61,10.7067381]
[1735197934214,2.5715,194.65,194.61,8.1348381]
[1735197934414,3.2119,194.66,194.61,8.1348381]
[1735197934720,11.3467381,194.66,194.59,10.7068381]
[1735197934921,2.5716,194.63,194.59,8.1348381]
[1735197936021,2.5715,194.65,194.59,10.7068381]
[1735197937120,2.5715,194.65,194.6,2.572]
[1735197939022,11.3467381,194.66,194.59,8.1348381]
[1735197939320,2.5716,194.64,194.59,10.7069381]
[1735197940318,11.3467381,194.66,194.58,3.22]
[1735197940520,2.5717,194.63,194.59,8.1348381]
[1735197941116,11.3467381,194.66,194.58,3.22]
[1735197941117,2.5719,194.61,194.58,3.22]
[1735197941321,8.1348381,194.64,194.57,8.1348381]
[1735197941522,8.1348381,194.62,194.55,8.1348381]
[1735197942118,2.5723,194.59,194.55,8.1348381]
[1735197942325,8.1348381,194.62,194.55,8.1348381]
[1735197943121,2.5721,194.6,194.55,10.7074381]
[1735197947227,2.5722,194.59,194.55,10.7074381]
[1735197949731,3.2119,194.66,194.55,8.1348381]
[1735197949935,8.1348381,194.65,194.57,10.7071381]
[1735197950230,8.1348381,194.65,194.57,8.1348381]
[1735197951534,2.5722,194.59,194.57,8.1348381]
[1735197951733,8.1348381,194.65,194.57,8.1348381]
[1735197952033,3.2119,194.66,194.59,10.7069381]
[1735197952532,2.5716,194.64,194.59,10.7069381]
[1735197955830,2.5713,194.66,194.61,8.1348381]
[1735197956428,1.52940758,194.67,194.63,8.1348381]
[1735197956935,1.52940758,194.67,194.59,3.2]
[1735197956936,1.52940758,194.67,194.62,8.1348381]
[1735197958547,2.5714,194.65,194.62,8.1348381]
[1735197959544,1.52940758,194.67,194.62,8.1348381]
[1735197959845,2.5715,194.64,194.62,8.1348381]
[1735197968446,2.5714,194.65,194.62,8.1348381]
[1735197970154,2.5715,194.64,194.62,8.1348381]
[1735197970650,1.52940758,194.67,194.62,8.1348381]
[1735197971451,2.5714,194.65,194.62,8.1348381]
[1735197977557,2.5714,194.65,194.62,10.7065381]
[1735197980460,4.10060758,194.67,194.63,2.5715]
[1735197984661,2.5714,194.65,194.62,8.1348381]
[1735197986961,1.52940758,194.67,194.52,28.34932774]
[1735197987259,8.1348381,194.62,194.54,8.1348381]
[1735197987666,2.5724,194.58,194.54,10.7076381]
[1735197989565,2.5722,194.59,194.55,2.5727]
[1735197993471,1.5811,194.61,194.55,2.5727]
[1735197995672,1.5811,194.61,194.56,10.7073381]
[1735197995872,1.5811,194.61,194.56,8.1348381]
[1735197996577,1.5811,194.61,194.58,2.5723]
[1735197998475,4.153,194.61,194.58,2.5723]
[1735198001081,4.153,194.61,194.56,8.1348381]
[1735198001277,4.153,194.61,194.56,10.7072381]
[1735198001475,4.153,194.61,194.56,8.1348381]
[1735198001980,4.153,194.61,194.58,10.7070381]
[1735198003371,8.1348381,194.65,194.58,8.1348381]
[1735198003576,1.52940758,194.67,194.62,8.1348381]
[1735198004781,2.5714,194.65,194.62,10.7066381]